bitfinex-derivatives/quotes_SOLF0:USTF0_20241016
["timestamp","ask_amount","ask_price","bid_price","bid_amount"]
[1729108065246,3.2383,154.4,154.37,16.8787]
[1729108065443,8.92,154.42,154.37,16.8787]
[1729108066146,8.92,154.42,154.37,13.64]
[1729108066347,3.2384,154.39,154.37,13.64]
[1729108074055,3.2384,154.39,154.37,16.8788]
[1729108078868,3.2384,154.39,154.37,13.64]
[1729108080360,8.92,154.42,154.37,4.72]
[1729108080566,3.2385,154.38,154.37,4.72]
[1729108080767,8.92,154.41,154.35,18.2241]
[1729108082372,3.2387,154.38,154.35,18.2241]
[1729108083371,3.2387,154.38,154.35,13.5241]
[1729108083773,8.92,154.38,154.34,4.72]
[1729108085172,3.2391,154.36,154.34,4.72]
[1729108086579,3.2387,154.38,154.35,12.1591]
[1729108086871,8.92,154.42,154.35,8.92]
[1729108087270,8.92,154.42,154.36,3.2388]
[1729108087271,3.2385,154.39,154.36,3.2388]
[1729108087476,6.0971,154.43,154.37,8.92]
[1729108087672,8.92,154.42,154.37,8.92]
[1729108087879,3.2377,154.42,154.39,3.2382]
[1729108088175,1.3484,154.44,154.4,8.92]
[1729108088373,1.3484,154.44,154.4,12.10488048]
[1729108088573,8.92,154.46,154.41,8.92]
[1729108089175,8.92,154.46,154.41,12.09502564]
[1729108089373,3.2374,154.44,154.41,15.33282564]
[1729108091380,3.2375,154.43,154.41,3.17502564]
[1729108091586,3.2375,154.43,154.4,12.158]
[1729108092281,3.2375,154.43,154.4,15.33917068]
[1729108096780,3.2375,154.43,154.41,3.2379]
[1729108098888,3.2374,154.44,154.41,12.1579]
[1729108102594,3.2375,154.43,154.41,12.1579]
[1729108105496,3.2379,154.41,154.4,3.18117068]
[1729108105699,8.92,154.43,154.38,13.64]
[1729108105997,3.2378,154.42,154.39,3.2382]
[1729108107491,3.2378,154.42,154.39,12.1582]
[1729108111210,8.92,154.44,154.39,12.1582]
[1729108111495,8.92,154.4,154.35,10.3206]
[1729108111692,8.92,154.39,154.34,13.62]
[1729108111891,8.92,154.39,154.34,4.7]
[1729108112097,8.92,154.39,154.34,7.9392]
[1729108112603,3.2389,154.37,154.34,7.9392]
[1729108112898,3.2389,154.37,154.35,3.2391]
[1729108117403,4.7,154.44,154.35,3.2391]
[1729108117607,3.2386,154.38,154.35,3.2391]
[1729108121209,3.2383,154.4,154.37,12.1587]
[1729108121507,13.64,154.44,154.38,8.92]
[1729108121811,13.64,154.44,154.38,12.1584]
[1729108123301,3.2381,154.41,154.38,12.1584]
[1729108127216,3.2378,154.42,154.4,3.2381]
[1729108127513,15.0737,154.45,154.4,6.55383834]
[1729108127718,15.0737,154.45,154.4,3.2381]
[1729108127906,3.2374,154.44,154.4,3.2381]
[1729108128107,15.0737,154.45,154.4,3.2381]
[1729108128309,15.0737,154.45,154.4,3.19300968]
[1729108128510,3.2378,154.42,154.39,8.92]
[1729108129402,3.2378,154.42,154.4,3.238]
[1729108129606,3.2378,154.42,154.4,6.55405437]
[1729108129809,3.2378,154.42,154.4,3.238]
[1729108130315,3.2378,154.42,154.4,6.42161943]
[1729108134712,3.2376,154.43,154.41,3.2379]
[1729108135412,3.2376,154.43,154.41,6.42131325]
[1729108135611,15.0737,154.45,154.41,3.18341325]
[1729108135612,3.2377,154.42,154.41,3.18341325]
[1729108135811,3.2377,154.42,154.4,3.238]
[1729108136409,3.2377,154.42,154.4,6.46059073]
[1729108147521,3.2377,154.42,154.4,3.22259073]
[1729108147722,3.2377,154.42,154.39,3.2382]
[1729108149022,3.2377,154.42,154.4,3.2381]
[1729108149333,3.2377,154.42,154.4,6.54272375]
[1729108149532,3.2377,154.42,154.4,3.2381]
[1729108149733,3.2377,154.42,154.39,8.92]
[1729108149935,3.2377,154.42,154.39,12.1582]
[1729108164540,3.2377,154.42,154.4,3.2381]
[1729108164741,3.2377,154.42,154.4,6.50721552]
[1729108164945,3.2377,154.42,154.4,3.2381]
[1729108165644,3.2377,154.42,154.4,6.49199979]
[1729108170253,10.3737,154.45,154.4,6.49199979]
[1729108170451,3.2376,154.43,154.41,3.2379]
[1729108171346,3.2376,154.43,154.41,12.1579]
[1729108176649,3.2379,154.41,154.4,3.25389979]
[1729108176853,8.92,154.41,154.36,4.7]
[1729108177154,8.92,154.39,154.35,4.7]
[1729108177544,12.1584,154.39,154.35,4.7]
[1729108177847,8.92,154.39,154.35,4.7]
[1729108179549,8.92,154.39,154.37,3.2387]
[1729108180455,3.2382,154.4,154.37,3.2387]
[1729108180757,8.92,154.41,154.37,3.2387]
[1729108180954,3.2382,154.4,154.37,3.2387]
[1729108181960,3.2379,154.41,154.39,12.1583]
[1729108182162,10.3737,154.45,154.4,8.92]
[1729108182364,10.3737,154.45,154.4,12.14011397]
[1729108182658,3.2371,154.46,154.44,8.92]
[1729108183155,1.3757,154.5,154.44,12.16051288]
[1729108183356,1.3757,154.5,154.46,8.92]
[1729108183659,3.2364,154.49,154.46,12.1569]
[1729108184060,3.2364,154.49,154.46,15.41554525]
[1729108186851,1.3757,154.5,154.46,15.41554525]
[1729108187053,3.2365,154.48,154.46,15.41554525]
[1729108195467,4.6119,154.5,154.46,15.41554525]
[1729108196063,1.3757,154.5,154.46,15.41554525]
[1729108196263,3.2363,154.49,154.46,15.41554525]
[1729108200470,3.2363,154.49,154.47,12.1566]
[1729108200674,3.236,154.51,154.48,8.92]
[1729108200874,1.4194,154.55,154.5,8.92]
[1729108201075,1.4194,154.55,154.52,8.92]
[1729108201276,6.0736,154.59,154.54,8.92]
[1729108201474,6.0736,154.59,154.54,12.1552]
[1729108201679,1.3736,154.59,154.55,8.92]
[1729108201969,3.2342,154.59,154.57,8.92]
[1729108202568,1.4194,154.6,154.57,8.92]
[1729108202569,3.2344,154.58,154.57,8.92]
[1729108202774,3.2344,154.58,154.56,8.92]
[1729108203273,8.92,154.59,154.55,7.88234761]
[1729108203472,1.4194,154.6,154.55,3.18234761]
[1729108203473,8.92,154.57,154.55,3.18234761]
[1729108203677,8.92,154.56,154.51,12.1557]
[1729108203875,8.92,154.56,154.51,8.92]
[1729108204280,3.2353,154.54,154.51,12.1558]
[1729108204475,3.2353,154.54,154.51,15.42420947]
[1729108204979,3.2356,154.52,154.51,3.26840947]
[1729108205167,3.2356,154.52,154.49,16.8561]
[1729108205481,8.92,154.53,154.49,8.92]
[1729108205672,1.0351,154.58,154.49,3.3064777]
[1729108205673,3.236,154.5,154.49,3.3064777]
[1729108205875,8.92,154.5,154.44,4.7]
[1729108206183,8.92,154.5,154.44,16.93489031]
[1729108206379,8.92,154.5,154.44,20.17199031]
[1729108206682,8.92,154.5,154.44,12.23489031]
[1729108206877,8.92,154.5,154.44,16.93489031]
[1729108207077,3.2367,154.47,154.44,20.17219031]
[1729108208776,3.2379,154.42,154.38,3.2385]
[1729108208971,8.92,154.43,154.38,8.92]
[1729108209172,1.4261,154.46,154.39,8.92]
[1729108209173,10.3461,154.46,154.39,8.92]
[1729108209392,1.0351,154.49,154.43,8.92]
[1729108209393,4.7,154.48,154.43,8.92]
[1729108209575,4.7,154.48,154.43,12.10132347]
[1729108210076,8.92,154.49,154.43,12.10132347]
[1729108210077,8.92,154.49,154.44,8.92]
[1729108210281,4.7,154.5,154.44,8.92]
[1729108211275,3.2368,154.47,154.44,8.92]
[1729108211671,4.7,154.5,154.44,8.92]
[1729108211875,1.4261,154.53,154.47,8.92]
[1729108212075,4.7,154.52,154.47,8.92]
[1729108212482,3.2362,154.5,154.47,8.92]
[1729108212678,3.2362,154.5,154.47,12.23606095]
[1729108215582,3.2362,154.5,154.47,15.47266095]
[1729108215883,3.2362,154.5,154.49,8.92]
[1729108216581,1.4261,154.53,154.49,12.18287927]
[1729108216785,3.2358,154.52,154.5,8.92]
[1729108217280,1.4261,154.53,154.5,8.92]
[1729108217488,3.2356,154.52,154.51,3.19621064]
[1729108218185,3.236,154.51,154.49,8.92]
[1729108218374,10.3461,154.53,154.49,8.92]
[1729108218578,10.3461,154.53,154.49,12.09670495]
[1729108219786,3.2359,154.51,154.49,12.09670495]
[1729108220981,10.3461,154.53,154.49,3.17670495]
[1729108221185,10.3461,154.53,154.47,8.92]
[1729108221387,8.92,154.52,154.47,8.92]
[1729108221590,8.92,154.52,154.47,12.23067961]
[1729108221790,3.2365,154.48,154.47,3.31067961]
[1729108221987,8.92,154.49,154.45,8.92]
[1729108222188,8.92,154.49,154.45,12.09572815]
[1729108222391,3.2368,154.47,154.45,12.09572815]
[1729108226396,3.2369,154.46,154.45,3.17572815]
[1729108226604,3.2369,154.46,154.4,1.3185]
[1729108226605,8.92,154.47,154.4,1.4145]
[1729108226901,8.92,154.47,154.4,13.5726]
[1729108227495,3.2376,154.43,154.41,3.2379]
[1729108227694,8.92,154.42,154.35,3.24932056]
[1729108227898,1.4095,154.49,154.29,4.7]
[1729108227899,8.92,154.4,154.29,4.7]
[1729108228191,13.62,154.4,154.34,8.92]
[1729108228399,3.2387,154.38,154.34,12.1593]
[1729108228796,3.2387,154.38,154.36,8.92]
[1729108229595,4.7,154.4,154.36,8.92]
[1729108229897,3.2385,154.39,154.36,12.09684993]
[1729108231000,3.2385,154.39,154.38,8.92]
[1729108231195,3.2385,154.39,154.36,8.92]
[1729108231391,3.2385,154.39,154.36,12.18122158]
[1729108231699,3.2385,154.39,154.36,13.58072208]
[1729108239500,3.2388,154.37,154.36,3.26122158]
[1729108239702,3.2388,154.37,154.35,10.2641]
[1729108239907,8.92,154.4,154.35,10.2641]
[1729108240101,13.62,154.41,154.36,8.92]
[1729108240405,4.7,154.41,154.4,8.92]
[1729108240598,7.938,154.41,154.4,8.92]
[1729108240900,13.62,154.41,154.37,8.92]
[1729108241198,3.2387,154.38,154.37,8.92]
[1729108241998,3.2389,154.37,154.35,13.43032046]
[1729108244298,3.2384,154.39,154.37,3.2386]
[1729108244500,4.7,154.41,154.38,8.92]
[1729108244703,4.7,154.41,154.37,8.92]
[1729108245096,3.2384,154.39,154.37,8.92]
[1729108245303,4.7,154.41,154.36,12.1588]
[1729108245604,3.2384,154.39,154.36,12.1588]
[1729108249701,3.2384,154.39,154.37,8.92]
[1729108250802,3.2384,154.39,154.37,12.1588]
[1729108251000,3.2397,154.33,154.2,79.64888317]
[1729108251205,13.62,154.36,154.29,8.92]
[1729108251407,8.92,154.34,154.29,15.45552067]
[1729108251601,8.92,154.34,154.29,12.21522067]
[1729108251803,3.24,154.32,154.29,12.21522067]
[1729108253211,3.2398,154.33,154.3,8.92]
[1729108253407,4.7,154.37,154.32,8.92]
[1729108254009,4.7,154.37,154.31,3.2399]
[1729108254613,4.7,154.37,154.31,6.47647127]
[1729108255213,3.2394,154.34,154.31,6.47647127]
[1729108255915,4.7,154.37,154.31,3.23657127]
[1729108256109,3.2398,154.32,154.3,1.3227]
[1729108256716,3.2398,154.32,154.3,4.61045999]
[1729108259713,14.0,154.38,154.3,4.61045999]
[1729108259904,4.7,154.37,154.3,18.61045999]
[1729108260313,3.2393,154.35,154.32,3.2397]
[1729108261216,14.0,154.45,154.34,14.0]
[1729108261413,4.7,154.43,154.34,14.0]
[1729108261813,3.2385,154.39,154.36,3.2389]
[1729108262517,4.7,154.39,154.31,20.0261]
[1729108263013,6.0559,154.39,154.31,6.0261]
[1729108263214,3.2395,154.34,154.31,9.266]
[1729108263812,6.0559,154.39,154.31,6.0261]
[1729108264116,3.2393,154.35,154.32,3.2397]
[1729108264505,3.2394,154.34,154.32,3.2397]
[1729108264714,3.2394,154.34,154.31,6.0261]
[1729108264917,3.2394,154.34,154.31,9.266]
[1729108265615,3.2394,154.34,154.31,4.566]
[1729108267718,3.2396,154.33,154.31,3.2399]
[1729108268619,3.24,154.32,154.3,4.61045999]
[1729108268918,4.7,154.35,154.3,3.28775999]
[1729108269221,3.24,154.31,154.3,3.28775999]
[1729108269426,14.0,154.34,154.27,4.7]
[1729108270420,3.2403,154.3,154.28,3.2406]
[1729108270612,3.2403,154.3,154.28,6.47326364]
[1729108271116,4.7,154.31,154.28,3.23266364]
[1729108271414,18.7,154.31,154.2,14.0]
[1729108271620,4.7,154.31,154.23,14.0]
[1729108271912,3.2408,154.28,154.25,3.2412]
[1729108272115,14.0,154.33,154.25,3.29358392]
[1729108272311,4.7,154.31,154.23,14.0]
[1729108272512,3.2405,154.29,154.26,3.2411]
[1729108272709,4.7,154.31,154.26,6.4745075]
[1729108273109,4.7,154.31,154.26,3.2334075]
[1729108273110,3.2407,154.28,154.26,3.2334075]
[1729108273309,3.2407,154.28,154.25,3.2412]
[1729108273920,3.2407,154.28,154.25,6.52321555]
[1729108274120,3.2407,154.28,154.25,3.2412]
[1729108274717,3.2407,154.28,154.25,6.55529686]
[1729108275023,3.2407,154.28,154.25,3.2412]
[1729108275525,3.2407,154.28,154.25,6.45386807]
[1729108275824,3.2407,154.28,154.25,15.41386807]
[1729108279024,8.9038,154.38,154.28,3.2406]
[1729108279224,8.96,154.34,154.28,3.2406]
[1729108279518,4.7,154.33,154.28,3.2406]
[1729108279824,13.66,154.33,154.28,3.2406]
[1729108280418,13.66,154.33,154.27,8.96]
[1729108280419,4.7,154.33,154.27,8.96]
[1729108280624,1.4484,154.37,154.31,8.96]
[1729108280922,3.2395,154.34,154.31,8.96]
[1729108281223,3.2395,154.34,154.31,12.1999]
[1729108282426,4.7,154.35,154.31,8.96]
[1729108282626,4.7,154.35,154.3,3.2402]
[1729108282924,3.2397,154.33,154.3,3.2402]
[1729108283528,3.2397,154.33,154.31,3.24]
[1729108287526,3.2397,154.33,154.31,12.2]
[1729108287920,3.2393,154.35,154.33,3.2396]
[1729108288727,3.2393,154.35,154.33,6.42627789]
[1729108288923,3.2393,154.35,154.33,3.18667789]
[1729108289227,3.2393,154.35,154.32,12.1997]
[1729108289428,3.2393,154.35,154.33,3.2395]
[1729108289628,3.2393,154.35,154.33,6.41872633]
[1729108290527,1.4484,154.37,154.34,3.2394]
[1729108290729,76.4539,154.46,154.36,8.96]
[1729108291030,8.96,154.42,154.36,8.96]
[1729108291823,13.66,154.42,154.36,8.96]
[1729108292530,3.2384,154.39,154.37,3.2387]
[1729108302230,8.96,154.39,154.33,8.00363506]
[1729108302533,3.2389,154.37,154.34,3.2393]
[1729108302732,3.2389,154.37,154.33,16.96363506]
[1729108304437,3.2389,154.37,154.35,3.239]
[1729108310438,8.96,154.39,154.34,8.96]
[1729108310742,8.96,154.36,154.33,3.30363506]
[1729108310942,8.96,154.35,154.3,10.3889]
[1729108311448,8.96,154.35,154.31,3.2399]
[1729108312041,8.96,154.35,154.3,13.629]
[1729108312042,3.2397,154.33,154.3,13.629]
[1729108312340,3.2397,154.33,154.3,10.3889]
[1729108312541,3.2397,154.33,154.31,3.24]
[1729108320246,3.2394,154.34,154.32,3.2396]
[1729108320449,1.4517,154.37,154.33,8.96]
[1729108320649,1.4517,154.37,154.35,8.96]
[1729108321445,3.239,154.36,154.35,3.15990669]
[1729108321647,3.239,154.36,154.33,12.1995]
[1729108322348,3.239,154.36,154.33,12.24527925]
[1729108322550,3.239,154.36,154.34,3.2393]
[1729108326645,15.0096,154.41,154.35,8.96]
[1729108327452,15.0096,154.41,154.35,12.12358924]
[1729108327650,3.2387,154.38,154.36,3.2389]
[1729108328552,3.2387,154.38,154.36,12.1989]
[1729108329652,1.3496,154.41,154.38,3.2385]
[1729108329845,6.099,154.43,154.37,8.96]
[1729108330147,3.238,154.41,154.37,8.96]
[1729108330749,3.238,154.41,154.39,3.2383]
[1729108334653,72.17563313,154.44,154.4,8.96]
[1729108336548,3.2377,154.43,154.4,12.1981]
[1729108338352,10.2923,154.45,154.4,12.1981]
[1729108338658,3.2377,154.42,154.4,12.1981]
[1729108352468,3.2374,154.44,154.42,3.2376]
[1729108352659,3.2374,154.44,154.43,8.96]
[1729108353457,1.4454,154.49,154.43,15.47244322]
[1729108353666,1.4454,154.49,154.45,8.96]
[1729108354160,1.4454,154.49,154.46,8.96]
[1729108354365,3.2366,154.48,154.46,12.24810529]
[1729108357258,3.2366,154.48,154.46,15.48500529]
[1729108365979,72.14197592,154.51,154.47,8.96]
[1729108366178,72.14197592,154.51,154.49,8.96]
[1729108366574,3.2361,154.5,154.49,8.96]
[1729108373679,72.14197592,154.51,154.49,8.96]
[1729108373877,8.96,154.56,154.5,8.96]
[1729108374281,8.96,154.56,154.51,3.2357]
[1729108374282,3.2355,154.53,154.51,3.2357]
[1729108374487,3.2355,154.53,154.52,8.96]
[1729108375282,3.2355,154.53,154.52,12.23809007]
[1729108377191,3.2355,154.53,154.52,3.27809007]
[1729108377392,3.2359,154.51,154.49,12.1961]
[1729108379697,3.2357,154.52,154.48,4.7]
[1729108379895,8.96,154.53,154.48,13.66]
[1729108380291,3.236,154.51,154.49,8.96]
[1729108380491,2.8662,154.57,154.49,8.96]
[1729108380698,13.66,154.56,154.5,8.96]
[1729108381193,3.2356,154.53,154.51,3.2358]
[1729108381695,13.66,154.56,154.48,4.7]
[1729108381902,13.66,154.56,154.51,8.96]
[1729108382896,3.2357,154.52,154.5,3.2359]
[1729108383096,8.96,154.55,154.49,8.96]
[1729108383291,4.7,154.56,154.51,8.96]
[1729108384501,3.2357,154.52,154.51,8.96]
[1729108385198,4.7,154.56,154.51,8.96]
[1729108385494,3.2356,154.53,154.51,8.96]
[1729108386996,3.2356,154.53,154.51,12.1958]
[1729108388801,3.2351,154.55,154.52,8.96]
[1729108389002,4.7,154.56,154.52,12.17394117]
[1729108389400,3.2353,154.54,154.52,12.17394117]
[1729108389603,4.7,154.56,154.52,12.17394117]
[1729108390503,3.2354,154.53,154.52,12.17394117]
[1729108398813,3.2354,154.54,154.52,12.17394117]
[1729108400403,3.2352,154.55,154.53,12.1954]
[1729108400609,7.5662,154.57,154.53,8.96]
[1729108401503,1.4208,154.57,154.55,8.96]
[1729108401708,76.80315395,154.59,154.55,8.96]
[1729108403411,3.2348,154.56,154.55,8.96]
[1729108406513,85.76315395,154.59,154.52,3.21394117]
[1729108406820,3.2352,154.54,154.53,8.96]
[1729108407708,3.2351,154.55,154.53,8.96]
[1729108410118,3.2351,154.55,154.53,12.1954]
[1729108412321,1.3492,154.61,154.54,8.96]
[1729108412522,3.2343,154.59,154.58,8.96]
[1729108412715,3.2343,154.59,154.58,12.1469945]
[1729108436646,3.2343,154.59,154.58,3.1869945]
[1729108436853,3.2343,154.59,154.58,8.96]
[1729108437054,3.2343,154.59,154.58,12.22185393]
[1729108441248,3.2343,154.59,154.58,3.26185393]
[1729108441443,3.2351,154.55,154.5,7.6111]
[1729108441647,13.66,154.59,154.53,8.96]
[1729108441845,4.7,154.59,154.55,8.96]
[1729108442154,3.2348,154.56,154.55,8.96]
[1729108449054,3.2352,154.54,154.53,3.20513941]
[1729108449351,3.2352,154.54,154.53,8.96]
[1729108449562,3.2352,154.54,154.53,12.14947007]
[1729108449961,3.235,154.55,154.53,15.38487007]
[1729108450260,3.235,154.55,154.54,8.96]
[1729108453159,4.7,154.59,154.54,8.96]
[1729108453356,3.2349,154.56,154.53,6.42467007]
[1729108453553,3.2349,154.56,154.55,8.96]
[1729108469871,3.2349,154.56,154.54,8.96]
[1729108479677,3.2349,154.56,154.55,8.96]
[1729108479982,10.3092,154.61,154.55,8.96]
[1729108479983,1.3492,154.61,154.55,8.96]
[1729108480278,1.3492,154.61,154.6,8.96]
[1729108480473,3.2337,154.62,154.6,8.96]
[1729108480672,3.2337,154.62,154.61,8.96]
[1729108481279,6.0153,154.65,154.61,8.96]
[1729108481482,6.0153,154.65,154.63,8.96]
[1729108482380,3.2332,154.64,154.63,8.96]
[1729108482776,3.2332,154.64,154.63,3.28536317]
[1729108482977,3.2332,154.64,154.63,12.24536317]
[1729108483183,3.2332,154.64,154.63,8.96]
[1729108483384,4.7,154.66,154.63,12.22466593]
[1729108485388,3.2331,154.64,154.63,12.22466593]
[1729108486796,3.2331,154.64,154.63,3.26466593]
[1729108487087,3.2335,154.62,154.61,8.96]
[1729108487288,3.2335,154.62,154.61,12.18564998]
[1729108488988,4.7,154.66,154.61,12.18564998]
[1729108489188,4.7,154.66,154.63,8.96]
[1729108489388,4.7,154.66,154.58,4.7]
[1729108489691,4.7,154.66,154.61,8.96]
[1729108490395,3.233,154.65,154.61,8.96]
[1729108490586,4.7,154.66,154.61,8.96]
[1729108491387,3.2338,154.61,154.58,11.18011258]
[1729108491588,3.2338,154.61,154.6,8.96]
[1729108498706,4.7,154.66,154.6,8.96]
[1729108499004,4.7,154.66,154.63,8.96]
[1729108499599,3.2331,154.64,154.63,8.96]
[1729108500201,1.3463,154.68,154.63,8.96]
[1729108500500,1.3463,154.68,154.58,7.94581258]
[1729108500501,3.233,154.65,154.58,7.94581258]
[1729108501398,3.2334,154.63,154.58,7.94581258]
[1729108501600,8.96,154.67,154.62,8.96]
[1729108502403,3.2333,154.63,154.6,3.2338]
[1729108502609,6.0263,154.68,154.62,8.96]
[1729108502901,6.0263,154.68,154.64,8.96]
[1729108503109,3.2329,154.65,154.64,8.96]
[1729108503800,3.2328,154.66,154.64,8.96]
[1729108503999,4.68,154.69,154.65,8.96]
[1729108504503,3.2326,154.67,154.65,8.96]
[1729108504905,4.68,154.69,154.65,8.96]
[1729108505296,6.075,154.7,154.65,8.96]
[1729108505703,3.2322,154.69,154.65,8.96]
[1729108505905,6.075,154.7,154.65,8.96]
[1729108508405,3.2322,154.69,154.65,8.96]
[1729108508610,6.075,154.7,154.65,8.96]
[1729108509312,3.2327,154.67,154.65,8.96]
[1729108510208,3.2324,154.68,154.65,12.1928]
[1729108510408,78.15569141,154.72,154.67,8.96]
[1729108511308,78.15569141,154.72,154.68,3.26931781]
[1729108512113,3.2323,154.68,154.63,1.3497]
[1729108512314,8.96,154.7,154.64,8.96]
[1729108513113,3.2329,154.65,154.64,8.96]
[1729108513715,78.15569141,154.72,154.64,8.96]
[1729108513916,8.96,154.71,154.66,8.96]
[1729108514218,8.96,154.71,154.66,12.12674865]
[1729108515219,3.2325,154.67,154.66,12.12674865]
[1729108517011,3.2325,154.67,154.66,3.16674865]
[1729108517220,8.96,154.69,154.64,8.96]
[1729108517414,8.96,154.66,154.61,8.96]
[1729108518121,8.96,154.66,154.61,12.22930539]
[1729108518322,3.2334,154.63,154.61,12.22930539]
[1729108520219,8.96,154.63,154.57,1.4232]
[1729108520420,8.96,154.63,154.57,4.60972179]
[1729108520626,8.96,154.63,154.58,8.96]
[1729108520824,8.96,154.63,154.58,12.1646307]
[1729108522623,3.2341,154.6,154.58,12.1646307]
[1729108524123,3.2341,154.59,154.58,12.1646307]
[1729108526926,9.2916,154.67,154.58,12.1646307]
[1729108527121,7.5065,154.67,154.62,8.96]
[1729108527427,16.4665,154.67,154.62,8.96]
[1729108528122,16.4665,154.67,154.61,8.96]
[1729108528827,8.96,154.64,154.59,8.96]
[1729108529027,8.96,154.64,154.6,3.2742521]
[1729108529224,4.68,154.63,154.6,3.2742521]
[1729108529426,3.2339,154.6,154.59,8.96]
[1729108529929,3.2339,154.6,154.59,12.26335656]
[1729108541241,2.8265,154.67,154.59,12.26335656]
[1729108541444,3.2335,154.63,154.62,8.96]
[1729108542134,3.2335,154.63,154.62,12.2057944]
[1729108546136,4.68,154.66,154.62,12.2057944]
[1729108546339,3.2332,154.64,154.62,12.2057944]
[1729108546536,4.68,154.66,154.62,12.2057944]
[1729108547341,3.2333,154.63,154.62,12.2057944]
[1729108551142,3.2331,154.65,154.62,15.4391944]
[1729108551342,3.2331,154.65,154.64,8.96]
[1729108560153,74.84017484,154.71,154.64,8.96]
[1729108560361,3.2324,154.68,154.66,8.96]
[1729108561153,3.2324,154.68,154.66,12.26929138]
[1729108561361,73.50337484,154.71,154.67,8.96]
[1729108561566,78.18337484,154.71,154.67,8.96]
[1729108562659,3.2323,154.68,154.67,8.96]
[1729108562859,3.2323,154.68,154.67,12.13350569]
[1729108563457,8.96,154.7,154.63,6.0429]
[1729108563657,3.2329,154.66,154.64,8.96]
[1729108565057,3.2329,154.65,154.63,3.19765938]
[1729108565266,13.64,154.68,154.61,3.2336]
[1729108565457,13.64,154.68,154.62,8.96]
[1729108565759,13.64,154.68,154.6,13.64]
[1729108565760,3.2337,154.62,154.6,13.64]
[1729108566065,3.2337,154.62,154.6,16.89035561]
[1729108566862,3.2337,154.62,154.61,8.96]
[1729108568062,3.2332,154.64,154.61,12.1936]
[1729108568261,3.2332,154.64,154.63,8.96]
[1729108568568,3.2337,154.61,154.6,7.93035561]
[1729108568868,4.68,154.68,154.6,16.89035561]
[1729108569163,3.2329,154.65,154.64,8.96]
[1729108573063,3.2329,154.65,154.62,3.2335]
[1729108573264,3.2329,154.65,154.63,8.96]
[1729108580173,3.2332,154.64,154.62,8.96]
[1729108580366,3.2332,154.64,154.63,8.96]
[1729108589588,3.2332,154.64,154.6,3.25035561]
[1729108589589,8.96,154.64,154.6,3.25035561]
[1729108589782,8.96,154.64,154.58,8.96]
[1729108589983,3.2338,154.61,154.59,12.1941]
[1729108590578,3.2338,154.61,154.59,8.96]
[1729108590779,8.96,154.64,154.6,3.20604022]
[1729108590980,3.2344,154.58,154.56,6.0066]
[1729108591281,3.2344,154.58,154.57,8.96]
[1729108591685,3.2339,154.61,154.56,10.2866]
[1729108591982,8.96,154.62,154.56,10.2866]
[1729108592676,8.96,154.6,154.55,8.96]
[1729108593077,3.2347,154.57,154.55,8.96]
[1729108595880,3.2347,154.57,154.54,3.2351]
[1729108596084,3.2347,154.57,154.55,8.96]
[1729108596381,8.96,154.6,154.55,8.96]